bitfinex-derivatives/quotes_SOLF0:USTF0_20251002
["timestamp","ask_amount","ask_price","bid_price","bid_amount"]
[1759387143653,11.2796,224.91,224.85,7.31]
[1759387143859,4.0,224.89,224.83,1.36926468]
[1759387149761,7.28,224.86,224.82,7.31]
[1759387150064,7.28,224.86,224.83,7.31]
[1759387151568,4.0003,224.87,224.83,7.31]
[1759387152367,11.2803,224.87,224.83,7.31]
[1759387152866,11.2806,224.85,224.78,8.67926468]
[1759387153975,7.28,224.82,224.75,7.31]
[1759387154165,7.28,224.82,224.76,1.36926468]
[1759387155563,11.2812,224.82,224.76,1.36926468]
[1759387155768,7.28,224.82,224.75,8.67926468]
[1759387156372,8.64926468,224.83,224.75,1.36926468]
[1759387156567,7.28,224.83,224.75,1.36926468]
[1759387157268,4.0013,224.81,224.75,1.36926468]
[1759387160273,4.0013,224.81,224.74,7.31]
[1759387160775,7.28,224.8,224.74,7.31]
[1759387164968,4.94913964,224.94,224.74,7.31]
[1759387165278,7.79,224.92,224.83,7.56]
[1759387165873,7.79,224.93,224.78,2.13657303]
[1759387166076,7.79,224.91,224.79,7.56]
[1759387166275,4.0002,224.88,224.79,7.56]
[1759387166671,7.79,224.87,224.79,7.56]
[1759387167272,9.43910237,224.87,224.79,7.56]
[1759387167976,7.79,224.92,224.81,2.13657303]
[1759387168274,7.79,224.92,224.82,7.56]
[1759387168679,9.43997998,224.92,224.82,7.56]
[1759387168880,7.79,224.92,224.82,7.56]
[1759387169281,1.64997998,224.91,224.82,7.56]
[1759387169472,1.64997998,224.9,224.82,7.56]
[1759387169674,1.64997998,224.91,224.82,7.56]
[1759387169874,1.64997998,224.9,224.82,7.56]
[1759387170083,1.64997998,224.91,224.82,7.56]
[1759387170382,1.64997998,224.9,224.82,7.56]
[1759387170582,1.64997998,224.89,224.82,7.56]
[1759387171080,4.52834869,224.89,224.82,7.56]
[1759387171382,1.64997998,224.88,224.82,7.56]
[1759387171577,1.64997998,224.87,224.79,7.56]
[1759387171777,1.64997998,224.88,224.79,7.56]
[1759387171972,1.64997998,224.87,224.79,7.56]
[1759387172172,1.64997998,224.88,224.79,7.56]
[1759387172377,1.64997998,224.87,224.79,7.56]
[1759387172576,5.65007998,224.88,224.79,7.56]
[1759387172787,9.43997998,224.87,224.79,7.56]
[1759387172978,1.64997998,224.86,224.79,7.56]
[1759387174089,5.65047998,224.86,224.79,7.56]
[1759387174284,8.52884869,224.86,224.79,7.56]
[1759387176388,4.52834869,224.86,224.79,2.13657303]
[1759387176588,4.54301819,224.92,224.83,2.13657303]
[1759387176783,12.73913964,225.03,224.9,2.13657303]
[1759387177094,7.79,225.03,224.95,7.56]
[1759387177393,7.79,224.99,224.9,7.56]
[1759387178490,4.94913964,225.13,224.97,7.56]
[1759387178788,15.21370946,225.48,225.26,62.1178]
[1759387178990,15.21370946,225.48,225.3,7.56]
[1759387178991,69.8609,225.44,225.3,7.56]
[1759387179189,62.0976,225.34,225.24,7.56]
[1759387179395,62.1055,225.31,225.19,7.56]
[1759387179595,113.76,225.3,225.19,7.56]
[1759387179892,7.79,225.28,225.2,3.81499129]
[1759387180095,7.79,225.28,225.21,3.81499129]
[1759387180292,62.1124,225.29,225.11,7.56]
[1759387180293,7.79,225.23,225.11,7.56]
[1759387180487,62.1306,225.22,225.12,3.80977769]
[1759387180686,62.1306,225.22,225.13,3.80977769]
[1759387180687,66.1247,225.22,225.13,3.80977769]
[1759387180888,113.84,225.26,225.11,7.56]
[1759387181087,7.79,225.28,225.11,7.56]
[1759387181393,176.038,225.27,225.11,7.56]
[1759387181800,180.0313,225.27,225.11,7.56]
[1759387181995,62.1282,225.23,225.11,7.56]
[1759387182297,113.92,225.22,225.11,7.56]
[1759387182494,62.1334,225.21,225.11,7.56]
[1759387182693,69.9234,225.21,225.11,7.56]
[1759387183089,73.9177,225.21,225.11,7.56]
[1759387183290,7.79,225.27,225.11,7.56]
[1759387183493,62.1198,225.26,225.11,13.16150264]
[1759387183999,69.9162,225.24,225.11,7.56]
[1759387185101,73.9099,225.24,225.11,7.56]
[1759387185299,176.114,225.28,225.12,7.56]
[1759387185598,121.83,225.29,225.12,7.56]
[1759387185792,121.83,225.29,225.14,7.56]
[1759387185990,7.79,225.29,225.14,7.56]
[1759387186191,62.1202,225.26,225.14,7.56]
[1759387186391,62.1263,225.24,225.14,7.56]
[1759387186597,62.1315,225.22,225.14,7.56]
[1759387186799,66.1255,225.22,225.14,7.56]
[1759387187201,62.1369,225.2,225.14,7.56]
[1759387187401,62.1369,225.2,225.07,7.56]
[1759387187702,66.137,225.18,225.07,7.56]
[1759387188504,66.143,225.16,225.07,7.56]
[1759387188701,62.1534,225.14,225.07,7.56]
[1759387188904,66.1545,225.12,225.03,5.87306485]
[1759387189295,3.9958,225.12,225.03,5.87306485]
[1759387190105,66.1541,225.12,225.03,5.87306485]
[1759387193706,7.79,225.2,225.07,7.56]
[1759387195308,3.9946,225.19,225.07,7.56]
[1759387195503,62.1528,225.14,225.03,5.87306485]
[1759387196110,66.1539,225.12,225.03,5.87306485]
[1759387196507,62.1642,225.1,225.03,5.87306485]
[1759387196713,62.1752,225.06,224.93,7.35]
[1759387196908,62.18,225.04,224.93,7.35]
[1759387197402,3.9975,225.03,224.93,7.35]
[1759387198106,3.9969,225.06,224.93,7.35]
[1759387198307,7.66,225.17,225.01,5.60150264]
[1759387198514,62.1479,225.16,225.02,7.35]
[1759387198807,3.9957,225.13,225.02,7.35]
[1759387199515,62.1638,225.1,225.02,7.35]
[1759387199815,62.1664,225.09,225.02,7.35]
[1759387200117,3.997,225.06,224.93,7.35]
[1759387200801,66.1776,225.04,224.93,7.35]
[1759387201007,69.8321,225.07,224.93,7.35]
[1759387201008,7.66,225.03,224.93,7.35]
[1759387201407,11.6576,225.03,224.93,7.35]
[1759387202010,114.56,225.04,224.93,7.35]
[1759387202307,62.1749,225.06,224.93,7.35]
[1759387202511,114.52,225.05,224.93,7.35]
[1759387202809,62.1749,225.06,224.93,7.35]
[1759387203012,73.8374,225.04,224.93,7.35]
[1759387203210,62.1832,225.03,224.86,7.35]
[1759387203405,62.1856,225.02,224.86,7.35]
[1759387203602,3.9981,225.0,224.86,7.35]
[1759387204010,114.48,225.01,224.86,7.35]
[1759387204416,62.192,225.0,224.86,7.35]
[1759387204604,3.9988,224.96,224.86,7.35]
[1759387205110,7.66,224.99,224.86,7.35]
[1759387206512,11.6583,224.99,224.86,7.35]
[1759387206817,69.8544,224.99,224.86,7.35]
[1759387207109,7.66,224.99,224.86,7.35]
[1759387208316,7.66,224.97,224.86,7.35]
[1759387208517,3.999,224.95,224.82,88.28]
[1759387209420,7.66,224.97,224.83,7.35]
[1759387209716,93.68,224.97,224.83,7.35]
[1759387210310,114.3,225.02,224.84,7.35]
[1759387210714,121.96,225.03,224.84,7.35]
[1759387211016,7.66,225.03,224.84,7.35]
[1759387211713,3.9977,225.02,224.84,11.3507]
[1759387211915,3.9977,225.02,224.85,7.35]
[1759387212114,7.66,225.03,224.85,7.35]
[1759387212317,62.1857,225.02,224.85,7.35]
[1759387212618,3.9981,225.0,224.85,7.35]
[1759387212810,7.66,225.0,224.85,93.51]
[1759387213717,3.9984,224.98,224.85,93.51]
[1759387214622,3.9987,224.96,224.85,93.51]
[1759387214822,3.9987,224.96,224.85,7.35]
[1759387215121,7.66,225.0,224.85,7.35]
[1759387215622,62.1447,225.17,224.98,7.35]
[1759387215921,62.1447,225.17,225.03,7.35]
[1759387216122,3.9956,225.14,225.03,7.35]
[1759387216711,3.996,225.12,225.03,7.35]
[1759387216916,62.1447,225.17,224.97,5.60150264]
[1759387216917,7.66,225.29,225.11,7.35]
[1759387217119,69.7853,225.24,225.11,7.35]
[1759387217317,114.5939,225.28,224.98,7.35]
[1759387217318,62.158,225.12,224.98,7.35]
[1759387217719,62.1616,225.11,224.98,7.35]
[1759387217920,7.66,225.1,224.98,7.35]
[1759387218116,7.66,225.32,225.06,5.60150264]
[1759387218320,62.136,225.2,225.07,12.95150264]
[1759387218523,3.9946,225.2,225.07,12.95150264]
[1759387218721,62.1362,225.2,225.07,12.95150264]
[1759387219023,7.66,225.19,225.07,12.95150264]
[1759387219326,3.9949,225.18,225.07,12.95150264]
[1759387219721,3.9952,225.16,225.07,12.95150264]
[1759387219924,7.66,225.31,225.14,7.35]
[1759387220223,62.1087,225.3,225.14,7.35]
[1759387220426,73.7643,225.29,225.14,7.35]
[1759387220626,62.1167,225.27,225.14,7.35]
[1759387220826,3.9933,225.27,225.14,7.35]
[1759387221326,66.1099,225.27,225.14,7.35]
[1759387223430,73.6961,225.25,225.13,93.42]
[1759387224037,62.073,225.43,225.24,7.17]
[1759387224329,69.7009,225.4,225.25,3.54694053]
[1759387224525,69.7009,225.4,225.18,7.17]
[1759387224526,7.62,225.33,225.18,7.17]
[1759387224725,62.1032,225.32,225.18,7.17]
[1759387224923,7.62,225.29,225.18,7.17]
[1759387225925,7.62,225.29,225.16,3.54694053]
[1759387226432,7.62,225.29,225.17,7.17]
[1759387228729,69.7321,225.29,225.17,7.17]
[1759387229335,3.993,225.28,225.17,7.17]
[1759387230336,66.1083,225.28,225.17,7.17]
[1759387231732,3.993,225.28,225.17,7.17]
[1759387232238,66.1071,225.28,225.17,7.17]
[1759387232438,3.9936,225.25,225.17,7.17]
[1759387232633,3.9936,225.25,225.12,10.71694053]
[1759387232835,3.9936,225.25,225.12,7.17]
[1759387233039,3.9939,225.23,225.12,7.17]
[1759387233242,7.62,225.24,225.12,7.17]
[1759387234438,62.1279,225.23,225.12,7.17]
[1759387234639,7.62,225.24,225.12,7.17]
[1759387234835,69.7464,225.24,225.12,7.17]
[1759387236043,62.1279,225.23,225.09,5.80059152]
[1759387236544,3.9944,225.21,225.09,5.80059152]
[1759387236944,7.62,225.2,225.09,5.80059152]
[1759387237745,11.6145,225.2,225.09,5.80059152]
[1759387239145,3.9938,225.24,225.1,7.17]
[1759387239652,3.9938,225.24,225.11,120.16]
[1759387240251,7.62,225.25,225.13,3.9955]
[1759387241050,11.6136,225.25,225.13,3.9955]
[1759387241547,7.62,225.25,225.13,3.9955]
[1759387241746,7.62,225.25,225.15,3.9953]
[1759387242847,65.64724053,225.33,225.15,3.9953]
[1759387242848,69.6767,225.49,225.29,7.17]
[1759387243051,7.62,225.45,225.37,3.54694053]
[1759387243255,69.6884,225.45,225.31,3.54694053]
[1759387244251,7.62,225.42,225.31,3.54694053]
[1759387244753,7.62,225.42,225.29,7.17]
[1759387246653,11.6107,225.42,225.29,7.17]
[1759387249050,73.6859,225.42,225.29,7.17]
[1759387249351,11.6107,225.42,225.29,7.17]
[1759387249757,73.6867,225.42,225.29,7.17]
[1759387250351,11.6107,225.42,225.29,7.17]
[1759387251856,62.0342,225.57,225.41,7.17]
[1759387252048,7.62,225.56,225.45,3.54694053]
[1759387252359,69.6574,225.56,225.45,3.54694053]
[1759387252561,3.9882,225.55,225.45,3.54694053]
[1759387254259,7.16,225.7,225.55,3.9881]
[1759387254554,7.16,225.7,225.55,10.36388106]
[1759387255054,3.9857,225.69,225.55,10.36388106]
[1759387255257,62.0015,225.69,225.55,10.36388106]
[1759387255761,62.0148,225.64,225.5,3.54694053]
[1759387256051,62.0231,225.61,225.45,449.76694053]
[1759387256255,62.0314,225.58,225.4,3.54694053]
[1759387256458,7.16,225.59,225.4,3.54694053]
[1759387256459,7.16,225.59,225.41,7.72]
[1759387256657,69.1892,225.59,225.41,7.72]
[1759387256858,11.148,225.56,225.41,11.7105]
[1759387257253,73.1846,225.56,225.41,11.7105]
[1759387257453,3.9885,225.54,225.41,7.72]
[1759387257956,66.0309,225.54,225.41,7.72]
[1759387258161,3.9888,225.52,225.41,7.72]
[1759387258756,3.9888,225.52,225.45,0.18708]
[1759387259554,7.16,225.53,225.45,0.18708]
[1759387259555,3.9893,225.5,225.45,0.18708]
[1759387259760,62.0532,225.5,225.45,0.18708]
[1759387260059,69.219,225.48,225.38,123.24]
[1759387260257,69.219,225.48,225.32,3.9922]
[1759387260458,3.9899,225.46,225.32,3.9922]
[1759387260863,3.9899,225.46,225.31,330.64]
[1759387261369,7.16,225.48,225.31,321.748]
[1759387262265,62.062,225.47,225.31,321.748]
[1759387262464,62.062,225.47,225.31,317.302]
[1759387262863,3.9901,225.45,225.31,317.302]
[1759387263260,3.9901,225.45,225.31,321.2943]
[1759387265468,3.9901,225.45,225.31,316.8483]
[1759387265663,7.16,225.46,225.31,316.8483]
[1759387265664,7.16,225.46,225.31,308.41]
[1759387265865,7.16,225.42,225.31,7.72]
[1759387267763,7.16,225.42,225.31,11.7123]
[1759387267968,7.16,225.48,225.32,62.1021]
[1759387268764,7.16,225.48,225.34,3.54694053]
[1759387268971,7.16,225.48,225.35,62.0943]
[1759387269568,7.16,225.48,225.37,62.0885]
[1759387269868,7.16,225.56,225.38,65.63284053]
[1759387270073,7.16,225.56,225.39,7.72]
[1759387270373,7.16,225.56,225.41,3.9906]
[1759387270566,7.16,225.56,225.44,62.069]
[1759387270772,3.9872,225.61,225.45,7.72]
[1759387270967,7.16,225.6,225.45,7.72]
[1759387271162,7.16,225.6,225.45,69.7856]
[1759387271362,7.16,225.6,225.45,7.72]
[1759387272066,7.16,225.6,225.46,3.9898]
[1759387272470,7.16,225.6,225.45,7.72]
[1759387273172,3.9875,225.59,225.45,7.72]
[1759387273562,7.16,225.6,225.45,7.72]
[1759387273967,65.56504053,225.63,225.41,114.24]
[1759387273968,7.16,225.57,225.41,114.24]
[1759387274174,7.16,225.57,225.42,7.72]
[1759387274668,11.1479,225.57,225.43,3.9903]
[1759387274869,11.1479,225.57,225.42,7.72]
[1759387275070,11.1479,225.57,225.42,11.7104]
[1759387275474,7.16,225.53,225.42,7.72]
[1759387276468,7.16,225.6,225.41,7.72]
[1759387276672,7.16,225.6,225.47,7.72]
[1759387277778,7.16,225.6,225.48,3.9894]
[1759387277972,7.16,225.6,225.47,69.7805]
[1759387278275,7.16,225.6,225.5,3.989]
[1759387281679,7.16,225.6,225.48,7.72]
[1759387282671,7.16,225.6,225.49,3.9893]
[1759387286481,330.53,225.67,225.47,62.0594]
[1759387286781,69.6681,225.63,225.43,62.0712]
[1759387286983,129.32834707,225.62,225.44,7.7]
[1759387287180,7.65,225.6,225.46,3.9896]
[1759387287380,9.00834707,225.6,225.46,3.9896]
[1759387287584,7.65,225.57,225.44,7.7]
[1759387287883,7.65,225.55,225.4,3.9907]
[1759387288078,7.65,225.53,225.39,7.7]
[1759387288284,7.65,225.53,225.43,3.9903]
[1759387288486,9.00834707,225.53,225.39,7.7]
[1759387288786,12.99694707,225.53,225.39,7.7]
[1759387289084,1.35834707,225.52,225.39,7.7]
[1759387289584,1.35834707,225.52,225.4,3.9907]
[1759387290078,1.35834707,225.52,225.39,7.7]
[1759387290284,1.35834707,225.52,225.39,11.691]
[1759387290486,3.9889,225.51,225.39,11.691]
[1759387290680,3.9889,225.51,225.39,7.7]
[1759387291076,1.35834707,225.55,225.42,7.7]
[1759387291289,9.00834707,225.58,225.42,7.7]
[1759387291986,7.65,225.55,225.42,11.6904]
[1759387292386,7.65,225.55,225.42,7.7]
[1759387293088,3.9884,225.54,225.42,7.7]
[1759387293586,5.34674707,225.54,225.42,7.7]
[1759387294789,5.34674707,225.54,225.43,3.9903]
[1759387295084,1.35834707,225.54,225.44,11.6901]
[1759387295283,9.00834707,225.55,225.44,11.6901]
[1759387295483,7.65,225.55,225.44,7.7]
[1759387296092,3.05068942,225.54,225.44,7.7]
[1759387296392,7.65,225.55,225.44,7.7]
[1759387296393,3.05068942,225.53,225.44,7.7]
[1759387296593,3.05068942,225.52,225.44,7.7]
[1759387296790,3.05068942,225.51,225.44,7.7]
[1759387296987,3.05068942,225.5,225.44,7.7]
[1759387297190,3.05068942,225.49,225.43,11.6902]
[1759387297388,3.05068942,225.48,225.44,7.7]
[1759387297689,3.05068942,225.47,225.44,7.7]
[1759387297888,7.03918942,225.54,225.43,11.6902]
[1759387298088,3.05068942,225.53,225.43,11.6902]
[1759387298292,10.70068942,225.52,225.43,7.31443175]
[1759387298490,3.05068942,225.51,225.43,7.31443175]
[1759387298690,3.05068942,225.5,225.43,7.31443175]
[1759387298887,3.05068942,225.49,225.43,7.31443175]
[1759387299086,3.05068942,225.48,225.43,7.31443175]
[1759387299286,3.05068942,225.47,225.43,7.31443175]
[1759387299492,3.05068942,225.51,225.43,7.31443175]
[1759387299693,3.05068942,225.5,225.43,11.30463175]
[1759387299996,3.05068942,225.49,225.43,11.30463175]
[1759387300196,3.05068942,225.48,225.43,11.30463175]
[1759387300497,3.05068942,225.47,225.43,3.9902]
[1759387300694,3.05068942,225.46,225.44,7.7]
[1759387300893,3.05068942,225.45,225.44,7.7]
[1759387301091,11.6387,225.52,225.44,7.7]
[1759387301092,3.05068942,225.5,225.44,7.7]
[1759387301294,3.05068942,225.49,225.44,7.7]
[1759387301592,3.05068942,225.48,225.44,7.7]
[1759387301792,3.05068942,225.47,225.44,7.7]
[1759387302098,10.70068942,225.5,225.43,3.9902]
[1759387302292,3.05068942,225.49,225.43,3.9902]
[1759387302492,3.05068942,225.48,225.44,7.7]
[1759387302794,3.05068942,225.47,225.44,7.7]
[1759387302988,3.05068942,225.49,225.44,7.7]
[1759387303189,3.05068942,225.48,225.44,7.7]
[1759387303384,3.05068942,225.47,225.44,7.7]
[1759387303591,3.05068942,225.49,225.44,7.7]
[1759387303894,3.05068942,225.48,225.44,7.7]
[1759387304084,3.05068942,225.47,225.44,7.7]
[1759387304288,3.05068942,225.46,225.44,7.7]
[1759387304489,3.05068942,225.49,225.44,7.7]
[1759387304690,3.05068942,225.48,225.44,3.9901]
[1759387304889,3.05068942,225.47,225.44,3.9901]
[1759387305087,3.05068942,225.46,225.45,7.7]
[1759387305291,3.05068942,225.53,225.45,7.7]
[1759387305488,3.05068942,225.52,225.45,7.7]
[1759387305695,3.05068942,225.51,225.44,3.9901]
[1759387305899,3.05068942,225.5,225.44,3.9901]
[1759387306198,3.05068942,225.49,225.45,7.7]
[1759387306398,3.05068942,225.48,225.45,7.7]
[1759387306593,3.05068942,225.47,225.44,3.9901]
[1759387306895,3.05068942,225.46,225.45,7.7]
[1759387307301,3.05068942,225.52,225.46,3.9896]
[1759387307599,10.80155593,225.51,225.42,7.7]
[1759387307791,3.15155593,225.5,225.42,7.7]
[1759387307994,3.15155593,225.49,225.44,3.9901]
[1759387308296,3.15155593,225.48,225.45,7.7]
[1759387308492,3.15155593,225.47,225.45,7.7]
[1759387308698,3.15155593,225.46,225.45,7.7]
[1759387309299,5.593e-05,225.46,225.45,7.7]
[1759387310692,7.65,225.55,225.48,3.9894]
[1759387310897,11.2353028,225.55,225.48,3.9894]
[1759387311098,7.65,225.55,225.48,3.9894]
[1759387312008,7.65,225.55,225.5,3.989]
[1759387312306,11.23711279,225.58,225.45,7.7]
[1759387312511,3.58711279,225.57,225.45,7.7]
[1759387313209,3.58711279,225.56,225.45,7.7]
[1759387313508,7.65,225.58,225.43,62.0715]
[1759387313509,3.58711279,225.57,225.48,3.9894]
[1759387313710,3.58711279,225.56,225.48,3.9894]
[1759387314004,7.65,225.58,225.48,3.9894]
[1759387314005,3.58711279,225.57,225.48,3.9894]
[1759387314208,3.58711279,225.56,225.48,3.9894]
[1759387314402,3.58711279,225.57,225.48,3.9894]
[1759387314606,3.58711279,225.56,225.48,3.9894]
[1759387314806,3.58711279,225.57,225.48,3.9894]
[1759387315107,3.58711279,225.57,225.43,60.87550057]
[1759387315108,3.58711279,225.56,225.45,3.9898]
[1759387315308,3.58711279,225.55,225.45,5.9198]
[1759387315611,3.58711279,225.54,225.47,3.9896]
[1759387315911,3.58711279,225.56,225.47,3.9896]
[1759387316116,3.58711279,225.55,225.47,3.9896]
[1759387316411,3.58711279,225.56,225.47,3.9896]
[1759387316710,3.58711279,225.55,225.47,3.9896]
[1759387316911,3.58711279,225.56,225.47,3.9896]
[1759387317116,3.58711279,225.55,225.47,3.9896]
[1759387317412,3.58711279,225.54,225.47,3.9896]
[1759387317612,3.58711279,225.56,225.47,3.9896]
[1759387317812,3.58711279,225.55,225.47,3.9896]
[1759387318113,3.9879,225.57,225.47,3.9896]
[1759387318114,3.58711279,225.56,225.47,3.9896]
[1759387318314,3.58711279,225.55,225.47,3.9896]
[1759387318512,3.58711279,225.56,225.47,3.9896]
[1759387318716,3.58711279,225.55,225.49,5.9192]
[1759387319015,3.58711279,225.57,225.49,1.93]
[1759387319215,3.58711279,225.56,225.49,5.9193]
[1759387319406,3.58711279,225.57,225.49,1.93]
[1759387320307,3.58711279,225.57,225.51,63.9789]
[1759387320512,3.58711279,225.62,225.52,1.93]
[1759387320913,3.58711279,225.62,225.54,3.9883]
[1759387321214,3.26719498,225.61,225.54,3.9883]
[1759387321423,3.26719498,225.6,225.54,3.9883]
[1759387321718,3.26719498,225.59,225.54,5.9183]
[1759387321908,7.41,225.57,225.47,1.93]
[1759387322110,3.26719498,225.56,225.47,1.93]
[1759387322314,3.26719498,225.55,225.47,1.93]
[1759387322510,3.26719498,225.54,225.5,3.989]
[1759387322713,9.498e-05,225.53,225.46,1.93]
[1759387322917,3.58711279,225.58,225.47,62.0608]
[1759387323117,3.58711279,225.59,225.48,1.93]
[1759387323617,3.58711279,225.59,225.53,3.9885]
[1759387324215,3.58711279,225.62,225.53,5.9185]
[1759387324421,10.99711279,225.61,225.53,5.9185]
[1759387324718,3.58711279,225.6,225.53,1.93]
[1759387324918,3.58711279,225.59,225.53,1.93]
[1759387325118,3.58711279,225.6,225.53,1.93]
[1759387325412,7.41,225.61,225.53,1.93]
[1759387325614,10.99711279,225.61,225.53,1.93]
[1759387325821,3.58711279,225.6,225.56,3.9879]
[1759387326019,3.58711279,225.6,225.53,1.93]
[1759387326217,3.58711279,225.61,225.53,1.93]
[1759387326514,7.41,225.62,225.53,1.93]
[1759387326921,7.41,225.62,225.55,3.9881]
[1759387328120,10.99711279,225.62,225.55,3.9881]
[1759387328422,3.58711279,225.61,225.55,3.9881]
[1759387328820,7.41,225.62,225.55,3.9881]
[1759387331326,3.58711279,225.66,225.57,3.9878]
[1759387331522,3.58711279,225.67,225.58,1.93]
[1759387331721,7.41,225.75,225.63,3.9867]
[1759387332026,7.41,225.75,225.66,2.12283162]
[1759387332726,119.60283162,225.86,225.66,2.12283162]
[1759387332727,7.41,225.74,225.7,2.12283162]
[1759387333228,7.41,225.74,225.69,2.12283162]
[1759387333428,7.41,225.74,225.69,4.05283162]
[1759387333933,7.41,225.74,225.69,1.93]
[1759387334416,7.41,225.76,225.66,2.12283162]
[1759387334622,7.41,225.76,225.64,1.93]
[1759387334623,3.09495121,225.75,225.65,2.12283162]
[1759387334820,7.41,225.73,225.65,2.12283162]
[1759387335021,3.09495121,225.72,225.65,2.12283162]
[1759387335220,7.41,225.73,225.65,2.12283162]
[1759387335627,7.41,225.72,225.62,2.12283162]
[1759387336127,3.9851,225.73,225.6,2.12283162]
[1759387336128,7.41,225.7,225.6,2.12283162]
[1759387336423,7.41,225.7,225.61,2.12283162]
[1759387338324,7.41,225.7,225.59,1.93]
[1759387338528,7.41,225.7,225.58,2.12283162]
[1759387338725,10.50495121,225.7,225.58,2.12283162]
[1759387339429,10.50495121,225.7,225.57,2.12283162]
[1759387339430,7.41,225.69,225.57,2.12283162]
[1759387339629,3.09495121,225.69,225.57,2.12283162]
[1759387339926,7.41,225.68,225.58,3.9876]
[1759387340127,7.41,225.68,225.59,1.93]
[1759387340830,7.41,225.68,225.59,4.05283162]
[1759387341230,7.41,225.68,225.59,8.04013162]
[1759387341534,10.50013183,225.68,225.6,116.9]
[1759387341734,7.41,225.68,225.6,116.9]
[1759387342432,7.41,225.71,225.66,1.35665207]
[1759387342734,7.41,225.71,225.66,3.28665207]
[1759387342934,10.49910294,225.75,225.69,1.35665207]
[1759387343128,3.08910294,225.74,225.69,1.35665207]
[1759387343329,10.49910294,225.74,225.69,1.35665207]
[1759387343531,3.9841,225.79,225.7,1.93]
[1759387343732,14.48188801,225.79,225.72,1.35665207]
[1759387343930,3.08778801,225.78,225.71,1.35665207]
[1759387345533,7.41,225.79,225.71,1.35665207]
[1759387346233,10.49778801,225.79,225.71,1.35665207]
[1759387346929,10.49778801,225.79,225.7,1.92]
[1759387347238,3.08778801,225.78,225.72,1.35665207]
[1759387347437,7.41,225.79,225.72,1.35665207]
[1759387348031,11.394,225.79,225.7,1.35665207]
[1759387348231,3.08778801,225.78,225.66,1.92]
[1759387348437,7.17,225.77,225.68,1.35665207]
[1759387349134,7.17,225.77,225.71,1.35665207]
[1759387350530,7.17,225.77,225.71,5.34195207]
[1759387351733,7.17,225.77,225.7,116.44]
[1759387351734,3.08778801,225.8,225.76,3.27665207]
[1759387351935,3.08778801,225.82,225.76,1.35665207]
[1759387352238,7.17,225.83,225.76,1.35665207]
[1759387353339,7.17,225.83,225.75,1.35665207]
[1759387353939,7.17,225.83,225.74,3.9848]
[1759387354142,7.17,225.83,225.75,1.35665207]
[1759387354341,10.25086498,225.83,225.75,1.35665207]
[1759387355034,10.25086498,225.83,225.76,3.9844]
[1759387355338,61.9198,225.99,225.77,1.35665207]
[1759387355339,7.17,225.81,225.77,1.35665207]
[1759387355635,7.17,225.86,225.77,1.35665207]
[1759387355942,7.17,225.81,225.74,1.35665207]
[1759387356238,7.17,225.81,225.72,1.92]
[1759387356239,1.35665207,225.8,225.67,1.92]
[1759387356430,10.25086498,225.79,225.68,1.35665207]
[1759387356637,3.9846,225.76,225.68,1.35665207]
[1759387356836,11.1546,225.76,225.68,1.35665207]
[1759387357038,3.08086498,225.75,225.68,1.35665207]